bitfinex-derivatives/quotes_SOLF0:USTF0_20241005
["timestamp","ask_amount","ask_price","bid_price","bid_amount"]
[1728110825689,11.69040369,144.29,144.28,3.4656]
[1728110825882,11.69040369,144.29,144.28,9.8656]
[1728110826184,11.69040369,144.29,144.28,3.4656]
[1728110831194,11.69040369,144.29,144.28,9.8656]
[1728110831497,11.69040369,144.29,144.28,14.7656]
[1728110861818,11.69040369,144.29,144.28,8.3656]
[1728110862024,11.69040369,144.29,144.28,14.7656]
[1728110880247,11.69040369,144.29,144.28,11.3]
[1728110880441,11.69040369,144.29,144.23,1.3765]
[1728110880442,15.15580369,144.29,144.2,74.8]
[1728110880746,6.4,144.28,144.23,14.7467]
[1728110881140,3.4659,144.27,144.23,8.3467]
[1728110881448,6.4,144.25,144.2,6.4]
[1728110881742,6.4,144.25,144.21,4.88]
[1728110882048,6.4,144.25,144.21,14.7473]
[1728110882246,9.8662,144.26,144.21,14.7473]
[1728110882843,1.4263,144.27,144.24,6.4]
[1728110883047,14.35820369,144.29,144.25,6.4]
[1728110883951,14.35820369,144.29,144.25,9.8663]
[1728110886761,14.35820369,144.29,144.25,6.4]
[1728110887053,17.82360369,144.29,144.25,6.4]
[1728110888551,17.82360369,144.29,144.25,9.8663]
[1728110889660,17.82360369,144.29,144.25,3.4663]
[1728110889851,17.82360369,144.29,144.25,9.8663]
[1728110890560,24.22360369,144.29,144.24,14.7465]
[1728110895260,3.4657,144.28,144.24,11.28]
[1728110895566,20.75820369,144.29,144.24,11.28]
[1728110895761,20.75820369,144.29,144.24,4.88]
[1728110896064,3.466,144.27,144.24,4.88]
[1728110897068,3.4661,144.26,144.22,14.7269]
[1728110897367,6.4,144.28,144.22,11.26]
[1728110897562,3.466,144.27,144.23,3.4668]
[1728110898962,3.4661,144.26,144.23,3.4668]
[1728110901867,3.4661,144.26,144.22,14.7269]
[1728110905560,9.8661,144.26,144.22,8.3269]
[1728110906560,9.8661,144.26,144.22,14.7269]
[1728110908873,3.4663,144.26,144.22,14.7269]
[1728110909862,3.4663,144.26,144.23,3.4668]
[1728110911270,9.866,144.27,144.23,9.8668]
[1728110911464,14.35820369,144.29,144.24,9.8664]
[1728110911771,20.75820369,144.29,144.24,6.4]
[1728110913066,3.4657,144.28,144.25,3.4662]
[1728110915974,20.75820369,144.29,144.24,6.4]
[1728110916167,9.8659,144.27,144.23,6.4]
[1728110916368,6.4,144.26,144.22,6.4]
[1728110916569,6.4,144.26,144.22,11.26]
[1728110917375,3.4664,144.25,144.22,14.7269]
[1728110918073,6.4,144.25,144.22,3.4669]
[1728110919078,9.8663,144.25,144.22,3.4669]
[1728110921773,9.8663,144.25,144.21,4.82]
[1728110921978,9.8663,144.25,144.21,8.2871]
[1728110922981,3.4663,144.25,144.21,8.2871]
[1728110923179,14.35820369,144.29,144.24,6.4]
[1728110923379,11.69040369,144.29,144.27,6.4]
[1728110923882,11.69040369,144.29,144.28,3.4656]
[1728110924083,11.69040369,144.29,144.27,6.4]
[1728110924478,11.69040369,144.29,144.28,9.8656]
[1728110924674,11.69040369,144.29,144.28,3.4656]
[1728110924877,11.69040369,144.29,144.28,9.8656]
[1728110927485,11.69040369,144.29,144.27,4.82]
[1728110927677,11.69040369,144.29,144.28,6.4]
[1728110928080,11.69040369,144.29,144.27,8.2856]
[1728110928287,11.69040369,144.29,144.28,6.4]
[1728110928583,11.69040369,144.29,144.26,7.7086]
[1728110928778,3.4657,144.28,144.26,7.7086]
[1728110928984,11.69040369,144.29,144.26,6.4]
[1728110929389,15.15580369,144.29,144.25,4.82]
[1728110929692,11.69040369,144.29,144.25,11.22]
[1728110929987,11.69040369,144.29,144.25,14.6863]
[1728110930188,11.69040369,144.29,144.26,6.4]
[1728110931283,11.69040369,144.29,144.27,6.4]
[1728110931689,11.69040369,144.29,144.28,6.4]
[1728110932586,11.69040369,144.29,144.28,9.8656]
[1728110933284,11.69040369,144.29,144.28,14.6856]
[1728110933581,15.90819982,144.3,144.29,3.4654]
[1728110933782,15.90819982,144.3,144.29,9.8654]
[1728110934086,10.40439982,144.3,144.29,9.8654]
[1728110934889,10.40439982,144.3,144.29,3.4654]
[1728110935094,10.40439982,144.3,144.29,9.8654]
[1728110935392,10.40439982,144.3,144.29,6.4]
[1728110935892,10.40439982,144.3,144.29,9.8654]
[1728110938086,10.40439982,144.3,144.29,6.4]
[1728110938591,10.40439982,144.3,144.29,11.22]
[1728110938892,10.40439982,144.3,144.29,4.82]
[1728110939294,10.40439982,144.3,144.27,8.2858]
[1728110939495,10.40439982,144.3,144.27,14.6858]
[1728110940200,10.40439982,144.3,144.27,8.2858]
[1728110940393,10.40439982,144.3,144.27,14.6858]
[1728110942700,10.40439982,144.3,144.28,3.4655]
[1728110942898,10.40439982,144.3,144.28,9.8655]
[1728110944106,10.40439982,144.3,144.28,3.4655]
[1728110944298,10.40439982,144.3,144.28,9.8655]
[1728110944696,10.40439982,144.3,144.29,6.4]
[1728110944901,10.40439982,144.3,144.29,9.8654]
[1728110945103,10.40439982,144.3,144.27,4.82]
[1728110945398,10.40439982,144.3,144.28,6.4]
[1728110946000,10.40439982,144.3,144.28,9.8655]
[1728110946397,10.40439982,144.3,144.28,6.4]
[1728110947402,10.40439982,144.3,144.29,3.4654]
[1728110947607,10.40439982,144.3,144.28,6.4]
[1728110948400,10.40439982,144.3,144.28,9.8654]
[1728110951109,10.40439982,144.3,144.29,9.8654]
[1728110955811,10.40439982,144.3,144.29,6.4]
[1728110956212,10.40439982,144.3,144.27,4.82]
[1728110956413,10.40439982,144.3,144.28,6.4]
[1728110956714,10.40439982,144.3,144.28,9.8655]
[1728110958308,10.40439982,144.3,144.29,3.4654]
[1728110960314,10.40439982,144.3,144.29,9.8654]
[1728110962113,10.40439982,144.3,144.29,3.4654]
[1728110962315,10.40439982,144.3,144.29,9.8654]
[1728110964130,10.40439982,144.3,144.29,3.4654]
[1728110966625,10.40439982,144.3,144.28,9.8655]
[1728110966828,3.4654,144.29,144.27,4.8]
[1728110967038,10.40439982,144.3,144.27,4.8]
[1728110967827,6.4,144.29,144.27,4.8]
[1728110968025,10.40439982,144.3,144.26,11.2]
[1728110968026,20.26959982,144.3,144.26,11.2]
[1728110968931,20.26959982,144.3,144.26,6.4]
[1728110969226,20.26959982,144.3,144.26,11.2]
[1728110970128,20.26959982,144.3,144.26,4.8]
[1728110970525,20.26959982,144.3,144.26,8.2661]
[1728110972723,16.80439982,144.3,144.26,4.8]
[1728110973424,20.26959982,144.3,144.26,4.8]
[1728110973822,9.8658,144.28,144.23,3.59162]
[1728110974131,6.4,144.28,144.23,14.81162]
[1728110974832,6.4,144.27,144.23,4.94502]
[1728110975131,6.4,144.27,144.23,0.12502]
[1728110975132,3.4661,144.26,144.23,0.12502]
[1728110975436,4.8792,144.26,144.23,0.12502]
[1728110976630,1.4131,144.26,144.24,6.4]
[1728110978939,1.4131,144.26,144.24,9.8665]
[1728110979340,1.4131,144.26,144.24,3.4665]
[1728110983041,7.8131,144.26,144.23,3.59172]
[1728110984046,7.8131,144.26,144.23,0.12502]
[1728110984246,11.2792,144.26,144.23,0.12502]
[1728110987841,3.4664,144.25,144.23,0.12502]
[1728110988049,6.4,144.24,144.23,0.12502]
[1728110988352,6.4,144.24,144.2,11.22]
[1728110988550,11.2065,144.24,144.2,9.8674]
[1728110989349,7.7399,144.24,144.19,11.22]
[1728110989548,3.467,144.23,144.19,11.22]
[1728110990551,3.4673,144.21,144.17,0.12502]
[1728110990744,9.8673,144.21,144.17,4.94502]
[1728110991646,6.4,144.21,144.17,3.59322]
[1728110991953,1.3218,144.23,144.19,6.4]
[1728110992750,1.3218,144.23,144.19,9.8677]
[1728110993251,1.3218,144.23,144.19,3.4677]
[1728110993753,1.3218,144.23,144.19,8.2877]
[1728110994151,1.3218,144.23,144.2,3.4675]
[1728110994351,1.3218,144.23,144.19,4.82]
[1728110994755,7.7218,144.23,144.19,8.2877]
[1728110994948,4.7886,144.23,144.19,8.2877]
[1728110995148,11.1886,144.23,144.19,8.2877]
[1728110995653,11.1886,144.23,144.2,3.4675]
[1728110996655,11.1886,144.23,144.19,3.4676]
[1728110998954,4.82,144.26,144.2,37.44587493]
[1728110999158,4.82,144.26,144.23,0.12502]
[1728110999660,3.4666,144.24,144.23,0.12502]
[1728111000258,9.8666,144.24,144.23,0.12502]
[1728111000460,5.63439479,144.24,144.23,19.19607095]
[1728111000956,4.82,144.24,144.23,37.57089493]
[1728111001159,11.22,144.24,144.23,37.57089493]
[1728111001350,8.2866,144.24,144.23,37.57089493]
[1728111001653,9.8666,144.24,144.23,37.57089493]
[1728111001862,6.4,144.25,144.23,37.57089493]
[1728111002156,6.4,144.26,144.24,37.44587493]
[1728111002558,6.4,144.26,144.25,37.44587493]
[1728111003661,9.8661,144.26,144.25,37.44587493]
[1728111004165,9.8661,144.26,144.25,35.29097493]
[1728111005359,3.4666,144.24,144.23,0.12502]
[1728111005558,9.8666,144.24,144.23,0.12502]
[1728111005754,6.4,144.25,144.23,0.12502]
[1728111006558,9.8664,144.25,144.23,0.12502]
[1728111007860,3.4666,144.24,144.23,0.12502]
[1728111008158,9.8666,144.24,144.23,0.12502]
[1728111011960,3.9861,144.27,144.23,0.12502]
[1728111012165,6.4,144.25,144.23,0.12502]
[1728111012461,9.8665,144.25,144.23,0.12502]
[1728111012662,6.4,144.25,144.23,0.12502]
[1728111013460,9.0825,144.27,144.23,0.12502]
[1728111015164,12.5485,144.27,144.24,3.4665]
[1728111015362,6.1485,144.27,144.24,3.4665]
[1728111015558,6.1485,144.27,144.23,0.12502]
[1728111015559,6.4,144.26,144.23,0.12502]
[1728111015759,9.8661,144.26,144.23,3.59172]
[1728111017370,6.4,144.25,144.23,0.12502]
[1728111019379,9.8661,144.26,144.23,0.12502]
[1728111022074,3.4655,144.29,144.24,6.4]
[1728111022276,6.4,144.29,144.24,11.22]
[1728111022582,6.4,144.29,144.25,6.4]
[1728111023078,9.8654,144.29,144.25,9.8663]
[1728111024375,9.8654,144.29,144.25,3.4663]
[1728111026376,3.465,144.31,144.26,9.8659]
[1728111026676,6.4,144.3,144.26,9.8659]
[1728111028078,9.8652,144.3,144.26,9.8659]
[1728111034194,6.4,144.29,144.26,3.4659]
[1728111034595,6.4,144.28,144.24,11.22]
[1728111034891,6.4,144.27,144.23,4.94502]
[1728111035093,6.4,144.25,144.23,0.12502]
[1728111038599,6.4,144.27,144.23,3.59162]
[1728111040795,9.8659,144.27,144.23,3.59162]
[1728111041004,6.4,144.27,144.23,3.59162]
[1728111048104,9.866,144.27,144.23,3.59162]
[1728111052010,3.4661,144.26,144.23,0.12502]
[1728111052802,9.8661,144.26,144.23,0.12502]
[1728111059620,2.632,144.28,144.23,0.12502]
[1728111059817,6.4,144.27,144.23,6.52502]
[1728111060309,6.4,144.27,144.24,3.4665]
[1728111062020,9.8659,144.27,144.24,3.4665]
[1728111063316,3.4661,144.26,144.23,9.99182]
[1728111063514,9.8661,144.26,144.23,3.59182]
[1728111064612,9.8665,144.25,144.23,0.12502]
[1728111065324,3.4666,144.24,144.23,0.12502]
[1728111065617,3.4666,144.24,144.19,3.4677]
[1728111065618,6.4,144.24,144.19,3.4677]
[1728111065818,6.4,144.23,144.19,8.2877]
[1728111066018,9.867,144.23,144.19,3.4677]
[1728111069823,3.4672,144.22,144.18,14.6879]
[1728111070023,6.4,144.21,144.18,8.2879]
[1728111070222,6.4,144.21,144.17,6.52502]
[1728111070428,9.8674,144.21,144.17,14.81312]
[1728111073926,2.632,144.28,144.2,6.4]
[1728111074128,6.4,144.27,144.22,6.4]
[1728111074631,6.4,144.26,144.21,6.4]
[1728111074828,6.4,144.24,144.2,4.82]
[1728111075032,6.4,144.24,144.18,6.4]
[1728111075228,6.4,144.22,144.19,4.82]
[1728111075428,6.4,144.22,144.18,4.82]
[1728111075631,9.8672,144.22,144.18,8.2879]
[1728111076632,6.4,144.22,144.19,3.4677]
[1728111076821,6.4,144.22,144.18,4.82]
[1728111077128,6.4,144.21,144.17,11.34502]
[1728111077831,6.4,144.21,144.17,0.12502]
[1728111078632,2.7285,144.22,144.17,0.12502]
[1728111078633,6.4,144.19,144.17,0.12502]
[1728111078826,6.4,144.18,144.13,4.82]
[1728111079034,6.4,144.16,144.13,8.2891]
[1728111079232,6.4,144.17,144.13,11.22]
[1728111079934,6.4,144.17,144.14,3.4689]
[1728111082135,6.4,144.17,144.13,14.6891]
[1728111084633,9.8683,144.17,144.13,14.6891]
[1728111084838,6.4,144.16,144.13,8.2891]
[1728111087736,6.4,144.15,144.1,4.82]
[1728111087938,6.4,144.14,144.1,4.82]
[1728111088437,6.4,144.14,144.1,8.2898]
[1728111089730,9.8691,144.14,144.1,8.2898]
[1728111090240,9.8691,144.14,144.1,3.4698]
[1728111090435,6.4,144.14,144.09,4.82]
[1728111090743,9.8692,144.13,144.09,8.2901]
[1728111092036,2.6967,144.16,144.1,6.4]
[1728111092237,9.0967,144.16,144.12,6.4]
[1728111093140,12.5653,144.16,144.13,3.4692]
[1728111095943,9.8687,144.15,144.09,4.82]
[1728111096144,6.4,144.14,144.09,4.82]
[1728111096447,6.4,144.14,144.09,11.22]
[1728111096841,9.8691,144.14,144.09,11.22]
[1728111097248,9.8691,144.14,144.1,3.4697]
[1728111100446,9.8694,144.13,144.09,8.2901]
[1728111101151,6.4,144.15,144.1,6.4]
[1728111102251,9.8689,144.15,144.11,3.59462]
[1728111102448,6.4,144.15,144.11,0.12502]
[1728111102849,3.4691,144.14,144.11,0.12502]
[1728111103449,3.4691,144.14,144.11,3.59472]
[1728111103958,9.8688,144.15,144.11,3.59472]
[1728111104248,1.4172,144.19,144.13,3.469]
[1728111104441,3.4682,144.18,144.14,6.4]
[1728111104640,9.8682,144.18,144.14,6.4]
[1728111104840,9.8682,144.18,144.14,9.8688]
[1728111106252,3.4683,144.17,144.14,9.8688]
[1728111106754,6.4,144.16,144.12,4.82]
[1728111106958,9.8687,144.16,144.12,4.82]
[1728111107361,9.8687,144.16,144.12,8.2893]
[1728111108157,3.4687,144.15,144.12,8.2893]
[1728111108960,9.8686,144.16,144.12,8.2893]
[1728111113454,6.4,144.16,144.12,8.2893]
[1728111113658,3.4693,144.13,144.11,0.12502]
[1728111116451,1.4095,144.16,144.11,0.12502]
[1728111116659,9.8691,144.14,144.11,3.59472]
[1728111120762,6.4,144.14,144.11,0.12502]
[1728111121064,6.4,144.13,144.11,0.12502]
[1728111121562,9.8695,144.12,144.11,0.12502]
[1728111123268,9.8692,144.13,144.11,0.12502]
[1728111123460,1.3215,144.14,144.11,0.12502]
[1728111124164,4.7906,144.14,144.11,0.12502]
[1728111124864,11.1906,144.14,144.11,0.12502]
[1728111127664,9.8695,144.12,144.11,0.12502]
[1728111128770,3.4699,144.11,144.07,3.4705]
[1728111129065,6.4,144.1,144.07,8.2905]
[1728111130063,6.4,144.1,144.07,3.4705]
[1728111130266,9.87,144.1,144.06,3.4708]
[1728111132060,6.4,144.1,144.05,11.34502]
[1728111132366,6.4,144.13,144.08,6.4]
[1728111132557,6.4,144.13,144.08,11.22]
[1728111132959,9.8694,144.13,144.09,3.4702]
[1728111137065,7.7215,144.14,144.11,3.4696]
[1728111138674,11.1905,144.14,144.11,3.4696]
[1728111139476,11.278,144.16,144.12,3.4693]
[1728111139771,11.278,144.16,144.11,6.4]
[1728111140073,0.12502,144.17,144.15,3.4685]
[1728111140281,0.12502,144.17,144.14,6.4]
[1728111140574,6.52502,144.17,144.13,6.4]
[1728111140971,9.99342,144.17,144.13,9.869]
[1728111141462,3.59342,144.17,144.14,3.4689]
[1728111141662,9.99342,144.17,144.14,3.4689]
[1728111146771,9.99342,144.17,144.13,6.4]
[1728111146973,9.99342,144.17,144.13,9.869]
[1728111149973,9.99292,144.17,144.14,3.4686]
[1728111150381,9.99292,144.17,144.13,6.4]
[1728111151176,9.99292,144.17,144.13,9.8688]
[1728111151876,3.4683,144.16,144.13,9.8688]
[1728111153473,6.52502,144.17,144.12,6.4]
[1728111153680,3.4684,144.15,144.12,9.869]
[1728111156878,0.12502,144.17,144.14,3.4685]
[1728111157085,6.52502,144.17,144.12,6.4]
[1728111157287,0.12502,144.17,144.12,6.4]
[1728111157475,9.99312,144.17,144.14,3.4685]
[1728111157675,9.99312,144.17,144.14,8.2885]
[1728111158180,3.4682,144.16,144.14,4.82]
[1728111161281,6.52502,144.17,144.14,4.82]
[1728111161584,3.4684,144.15,144.14,4.82]
[1728111165686,0.12502,144.17,144.14,11.22]
[1728111165881,0.12502,144.17,144.15,6.4]
[1728111166582,3.59292,144.17,144.15,6.4]
[1728111170294,0.12502,144.17,144.15,9.8684]
[1728111170597,0.12502,144.17,144.16,6.4]
[1728111170894,0.12502,144.17,144.16,9.8681]
[1728111172394,0.12502,144.17,144.16,6.4]
[1728111175996,0.12502,144.17,144.16,9.8681]
[1728111176997,0.12502,144.17,144.16,3.4681]
[1728111177296,0.12502,144.17,144.16,14.6881]
[1728111182020,0.12502,144.17,144.16,9.8681]
[1728111182217,0.12502,144.17,144.16,14.6881]
[1728111188428,0.12502,144.23,144.16,11.22]
[1728111188721,0.12502,144.23,144.2,6.4]
[1728111189314,0.12502,144.23,144.2,3.4671]
[1728111189616,0.12502,144.23,144.21,6.4]
[1728111191019,0.12502,144.23,144.21,9.8669]
[1728111193615,0.12502,144.23,144.22,3.4667]
[1728111194322,0.12502,144.23,144.22,9.8667]
[1728111196720,0.12502,144.23,144.22,14.6867]
[1728111197418,0.12502,144.29,144.22,11.22]
[1728111197620,0.12502,144.29,144.23,1.3288]
[1728111197818,0.12502,144.29,144.28,6.4]
[1728111198021,0.12502,144.29,144.28,11.22]
[1728111198832,0.12502,144.29,144.28,14.6853]
[1728111200631,0.12502,144.29,144.28,4.82]
[1728111200928,0.12502,144.29,144.28,11.22]
[1728111201125,0.12502,144.29,144.28,4.82]
[1728111201331,0.12502,144.29,144.23,2.7102]
[1728111201535,0.12502,144.29,144.24,4.82]
[1728111201835,0.12502,144.29,144.25,6.4]
[1728111202428,0.12502,144.29,144.26,6.4]
[1728111202836,0.12502,144.29,144.27,6.4]
[1728111203142,0.12502,144.29,144.27,11.22]
[1728111203528,0.12502,144.29,144.28,6.4]
[1728111205431,0.12502,144.29,144.28,9.8653]
[1728111206534,14.91420114,144.32,144.31,3.4645]
[1728111206737,14.91420114,144.32,144.31,14.6845]
[1728111207435,20.48786598,144.33,144.32,3.4643]
[1728111207739,20.48786598,144.33,144.32,9.8643]
[1728111208336,0.12502,144.35,144.32,6.4]
[1728111208532,0.12502,144.35,144.34,6.4]
[1728111208734,0.12502,144.35,144.34,11.22]
[1728111211838,0.12502,144.35,144.34,4.8]
[1728111212439,3.58872,144.35,144.32,6.4]
[1728111212628,3.58872,144.35,144.32,4.8]
[1728111213552,0.12502,144.35,144.32,4.8]
[1728111213836,3.464,144.34,144.32,4.8]
[1728111214040,6.52502,144.35,144.32,4.8]
[1728111214343,9.33102,144.35,144.31,6.4]
[1728111214546,6.4,144.34,144.3,4.8]
[1728111215038,3.4641,144.33,144.3,4.8]
[1728111215346,6.4,144.32,144.29,11.2]
[1728111215936,3.4647,144.31,144.27,14.6655]
[1728111216141,6.4,144.31,144.25,74.82]
[1728111216338,6.4,144.31,144.26,11.2]
[1728111216734,3.4649,144.3,144.26,14.6657]
[1728111218347,6.4,144.31,144.26,11.2]
[1728111218636,3.465,144.29,144.26,11.2]
[1728111220048,3.465,144.29,144.26,6.4]
[1728111220239,3.465,144.29,144.26,11.2]
[1728111231749,29.24272088,144.36,144.3,3.4648]
[1728111232051,7.94162,144.35,144.31,6.4]
[1728111232251,3.4639,144.34,144.31,6.4]
[1728111234653,3.4639,144.34,144.31,9.8645]
[1728111235248,7.94162,144.35,144.31,6.4]
[1728111235454,11.40522,144.35,144.32,3.4643]
[1728111239261,11.40522,144.35,144.31,6.4]
[1728111239454,11.40522,144.35,144.31,9.8644]
[1728111239760,11.40522,144.35,144.31,6.4]
[1728111239955,1.54162,144.35,144.33,3.464]
[1728111240253,1.54162,144.35,144.32,6.4]
[1728111241162,5.00522,144.35,144.32,9.8643]
[1728111241560,5.00522,144.35,144.29,4.8]
[1728111241858,6.4,144.34,144.3,6.4]
[1728111242249,3.4642,144.33,144.3,9.8646]
[1728111242556,1.54162,144.35,144.24,7.23396221]
[1728111242557,6.4,144.31,144.24,7.23396221]
[1728111242757,6.4,144.31,144.27,6.4]
[1728111242953,6.4,144.29,144.25,4.8]
[1728111243160,4.76190101,144.34,144.25,4.8]
[1728111243161,6.4,144.27,144.25,4.8]
[1728111244048,3.4653,144.28,144.25,4.8]
[1728111244357,6.4,144.3,144.26,6.4]
[1728111244659,9.8649,144.3,144.26,9.8656]
[1728111245756,3.4651,144.29,144.26,9.8656]
[1728111246155,9.8651,144.29,144.25,14.6659]
[1728111252267,6.4,144.29,144.25,11.2]
[1728111252559,6.4,144.29,144.26,3.4655]
[1728111252865,3.4652,144.29,144.26,9.8655]
[1728111254561,3.4652,144.29,144.26,6.4]
[1728111254766,6.4,144.3,144.26,6.4]
[1728111254767,3.4653,144.28,144.26,6.4]
[1728111257369,3.4652,144.29,144.26,9.8656]
[1728111259170,7.786,144.31,144.26,9.8656]
[1728111259472,3.465,144.29,144.26,9.8656]
[1728111260862,7.786,144.31,144.26,6.4]
[1728111261062,7.786,144.31,144.25,4.8]
[1728111261262,6.4,144.28,144.25,4.8]
[1728111261466,3.4656,144.27,144.25,4.8]
[1728111261664,6.4,144.29,144.25,4.8]
[1728111262067,3.4654,144.28,144.25,8.266]
[1728111262469,1.386,144.31,144.25,11.2]
[1728111262773,7.786,144.31,144.25,11.2]
[1728111262973,3.4652,144.29,144.26,3.4657]
[1728111263975,1.386,144.31,144.27,6.4]
[1728111264172,1.3286,144.34,144.28,11.2]
[1728111264371,9.36862,144.35,144.3,6.4]
[1728111264678,3.4642,144.33,144.3,9.8647]
[1728111266871,3.4642,144.33,144.3,6.4]
[1728111268073,6.4,144.34,144.28,14.6651]
[1728111268769,3.4643,144.33,144.28,14.6651]
[1728111268975,6.4,144.34,144.28,14.6651]
[1728111269577,3.4644,144.32,144.29,3.465]
[1728111269873,6.4,144.34,144.29,3.465]
[1728111270471,3.4642,144.33,144.29,3.465]
[1728111271885,3.4645,144.32,144.28,14.6652]
[1728111272778,6.4,144.34,144.3,6.4]
[1728111273476,3.4642,144.33,144.3,6.4]
[1728111276788,2.96862,144.35,144.32,3.4642]
[1728111276986,2.96862,144.35,144.31,6.4]
[1728111277186,9.36862,144.35,144.31,4.8]
[1728111277987,3.4639,144.34,144.31,8.2644]
[1728111279792,0.12502,144.35,144.31,8.2644]
[1728111280096,0.12502,144.35,144.34,6.4]
[1728111280489,0.12502,144.35,144.34,14.6638]
[1728111281090,0.12502,144.35,144.34,4.8]
[1728111281690,3.464,144.34,144.32,4.8]
[1728111282190,6.52502,144.35,144.32,4.8]
[1728111282390,3.464,144.34,144.32,4.8]
[1728111289698,0.12502,144.35,144.32,4.8]
[1728111289900,3.58872,144.35,144.32,8.2643]
[1728111290298,3.58872,144.35,144.32,4.8]
[1728111291207,0.12502,144.35,144.32,11.2]
[1728111291408,0.12502,144.35,144.33,3.4641]
[1728111292904,0.12502,144.35,144.33,3.4639]
[1728111296801,0.12502,144.35,144.32,11.2]
[1728111297004,3.58862,144.35,144.32,14.6642]
[1728111300011,3.58862,144.35,144.32,11.2]
[1728111300611,3.58862,144.35,144.32,14.6643]
[1728111301209,0.12502,144.35,144.32,11.2]
[1728111304010,0.12502,144.35,144.33,3.464]
[1728111314511,0.12502,144.35,144.31,6.4]
[1728111314819,0.12502,144.35,144.32,4.8]
[1728111314820,3.4639,144.34,144.32,4.8]
[1728111315121,9.98872,144.35,144.32,8.2642]
[1728111315311,9.98872,144.35,144.32,4.8]
[1728111316116,9.98872,144.35,144.31,14.6644]
[1728111316817,3.4639,144.34,144.31,14.6644]
[1728111317117,3.4639,144.34,144.31,11.2]
[1728111319012,3.4639,144.34,144.31,14.6645]
[1728111319317,3.4645,144.32,144.3,4.8]
[1728111319625,3.4645,144.32,144.29,4.8]
[1728111320312,6.4,144.32,144.29,4.8]
[1728111320512,3.4646,144.31,144.29,4.8]
[1728111323020,3.4646,144.31,144.27,8.2654]
[1728111323215,3.4646,144.31,144.27,14.6654]
[1728111324222,2.7018,144.34,144.28,6.4]
[1728111324518,1.3432,144.34,144.3,6.4]
[1728111324719,1.3432,144.34,144.3,11.2]
[1728111325122,6.52502,144.35,144.31,6.4]
[1728111326117,0.12502,144.35,144.32,6.4]
[1728111326518,0.12502,144.35,144.32,9.8642]
[1728111328922,0.12502,144.35,144.33,3.4641]
[1728111329224,0.12502,144.35,144.32,6.4]
[1728111329827,0.12502,144.35,144.33,3.4638]
[1728111331820,0.12502,144.35,144.33,8.2638]
[1728111335729,0.12502,144.35,144.33,4.8]
[1728111336228,0.12502,144.35,144.33,11.2]
[1728111336425,0.12502,144.35,144.34,9.8638]
[1728111336629,24.44272088,144.36,144.34,6.4]
[1728111336927,24.44272088,144.36,144.35,9.8636]
[1728111341333,24.44272088,144.36,144.35,3.4636]
[1728111341730,24.44272088,144.36,144.35,9.8636]
[1728111350626,24.44272088,144.36,144.33,3.4639]
[1728111350627,27.90612088,144.36,144.33,3.4639]
[1728111350830,27.90612088,144.36,144.33,14.6639]
[1728111351634,24.44272088,144.36,144.33,14.6639]
[1728111352231,24.44272088,144.36,144.35,6.4]
[1728111353143,24.44272088,144.36,144.35,9.8636]